Cogmind - Beta 13 @@@ ROGUE MODE // 2024.04.18 @ 22:25:38 Player: RD-BNK(r) Result: Escaped! Performance ------------- Evolutions (9) 4500 Regions Visited (23) 4600 Robots Destroyed (179) 895 Value Destroyed (6997) 6997 Prototype IDs (61) 1220 Alien Tech Used (0) 0 Bonus (7780) 7780 TOTAL SCORE: 25992 Bonus ------- High Alert Combat Kills 364 Follower Combat Kills 1649 Entered Garrisons 200 Entered DSFs 500 Aligned with FarCom 300 Acquired ECA 300 Met Warlord at Base 500 MAIN.C Attacked Warlord 500 Warlord Defense Kills 660 Win 3000 Friendly Fire -193 Cogmind --------- Core Integrity 1384/1600 Matter 26/300 Energy 434/440 System Corruption 0% Temperature Cool (15) Movement Flying (29) Location To Epsilon Eridani Parts ------- > --- POWER (2) -------- Micro Antimatter Reactor Light Quantum Reactor > --- PROPULSION (6) --- Xenon Bombardment Thruster Impulse Thruster Impulse Thruster Impulse Thruster Impulse Thruster Array > --- UTILITY (15) ----- Compact Battery Machine Analyzer Advanced Visual Processing Unit Improved Salvage Targeting Computer Advanced ECM Suite Improved Hacking Suite Advanced Hacking Suite System Shield System Shield Improved System Shield > --- WEAPON (2) ------- Compact HERF Cannon Force Lance > --- INVENTORY (5) ---- Xenon Bombardment Thruster Thermal Shield Point Defense Array Enhanced Gamma Bomb Array Peak State ------------ > --- POWER ------------ Light Antimatter Reactor Particle Reactor > --- PROPULSION ------- Medium Treads Armored Heavy Treads Centrium Heavy Treads > --- UTILITY ---------- Advanced Heat Sink Advanced Coolant Injector Large Storage Unit Machine Analyzer Enhanced Optical Array Improved Salvage Targeting Computer Advanced Force Field Improved Hacking Suite Improved Hacking Suite Advanced Hacking Suite Improved System Shield Advanced Corruption Screen > --- WEAPON ----------- Nova Cannon Improved Matter Neutralizer > --- INVENTORY -------- Light Antimatter Reactor Armored Heavy Treads Armored Heavy Treads Improved Heat Sink Advanced Transmission Jammer Vortex Rifle Vortex Rifle Compact HERF Cannon Hardcell Cannon Micro-nuke Launcher Powered Hammer Vortex Lance Vortex Lance [Rating: 142] Favorites ----------- Power F-cell Engine Engine F-cell Engine Power Core Fusion Compressor Reactor Particle Reactor Propulsion Advanced Treads Treads Advanced Treads Leg Myomer Leg Wheel Wheel Hover Unit Improved Antigrav System Flight Unit Improved VTOL Module Utility Hacking Suite Device Advanced Coolant Injector Storage Humpback Processor Advanced Visual Processing Unit Hackware Hacking Suite Protection Experimental Utility Shielding Weapon Enhanced Autogun Energy Gun Quantum Rifle Energy Cannon Nova Cannon Ballistic Gun Enhanced Autogun Ballistic Cannon Hypervelocity Gauss Cannon Launcher Precision Rocket Launcher Special Weapon Advanced Remote Datajack Impact Weapon Great Maul Slashing Weapon Scythe Piercing Weapon Vortex Lance Special Melee Weapon Improved Datajack Build | -11 -10 -10 -10 -9 -8 -8 -7 -6 -6 -6 -6 -6 -5 -5 -5 -4 -4 -4 -4 -3 -3 -2 -1 ------- Run | Yrd Mat Min Exi Min Mat Sto Fac Fac Was Fac DSF Gar Fac Upp Upp Fac Upp Upp War Pro Res Res Acc Slots Evolved 18 | . . . . . 4 . 2 2 . . . . 2 . . 2 . . . . 2 2 2 Power 1 | . . . . . . . . . . . . . . . . . . . . . 1 . . Propulsion 4 | . . . . . 2 . . . . . . . 1 . . . . . . . . 1 . Utility 13 | . . . . . 2 . 2 2 . . . . 1 . . 2 . . . . 1 1 2 Weapon . | . . . . . . . . . . . . . . . . . . . . . . . . Parts Attached 305 | 3 4 10 2 . 14 34 31 4 3 . 6 . 10 2 . 26 7 4 22 4 74 25 20 Power 27 | . 1 1 . . 3 1 4 . . . . . 1 . . 3 . 1 1 1 5 2 3 Engine 13 | . 1 1 . . 3 1 4 . . . . . 1 . . 1 . 1 . . . . . Core 1 | . . . . . . . . . . . . . . . . . . . . 1 . . . Reactor 13 | . . . . . . . . . . . . . . . . 2 . . 1 . 5 2 3 Propulsion 102 | 2 . 4 . . 3 15 12 . . . 5 . 5 . . 9 2 2 6 . 20 10 7 Treads 28 | 2 . 2 . . 1 12 . . . . . . . . . . . . . . 11 . . Leg 11 | . . . . . . . . . . . . . . . . . . . 6 . . 5 . Wheel 5 | . . 2 . . 2 1 . . . . . . . . . . . . . . . . . Hover 14 | . . . . . . . . . . . . . . . . 9 2 2 . . 1 . . Flight 44 | . . . . . . 2 12 . . . 5 . 5 . . . . . . . 8 5 7 Utility 87 | 1 1 . 1 . 2 . 13 4 3 . 1 . 3 2 . 7 4 . 4 . 27 9 5 Device 42 | 1 . . . . . . 5 3 3 . . . . 2 . 3 2 . 3 . 14 2 4 Storage 9 | . 1 . 1 . . . 2 . . . . . 1 . . . 1 . . . 1 2 . Processor 13 | . . . . . 1 . 3 . . . . . . . . 1 . . . . 7 1 . Hackware 16 | . . . . . 1 . 3 1 . . . . 2 . . 1 . . . . 3 4 1 Protection 7 | . . . . . . . . . . . 1 . . . . 2 1 . 1 . 2 . . Artifact . | . . . . . . . . . . . . . . . . . . . . . . . . Weapon 89 | . 2 5 1 . 6 18 2 . . . . . 1 . . 7 1 1 11 3 22 4 5 Energy Gun 13 | . 1 2 . . . . . . . . . . . . . . 1 . 4 . 5 . . Energy Cannon 6 | . . . . . . . . . . . . . . . . 1 . . . . 3 . 2 Ballistic Gun 20 | . 1 2 1 . 6 9 1 . . . . . . . . . . . . . . . . Ballistic Cannon 6 | . . . . . . . . . . . . . . . . . . . 1 . 5 . . Launcher 15 | . . . . . . 2 . . . . . . 1 . . 2 . 1 3 1 1 3 1 Special Weapon 2 | . . . . . . . . . . . . . . . . . . . 1 . . . 1 Impact Weapon 13 | . . 1 . . . 7 . . . . . . . . . 4 . . . . 1 . . Slashing Weapon 1 | . . . . . . . . . . . . . . . . . . . . . 1 . . Piercing Weapon 12 | . . . . . . . . . . . . . . . . . . . 2 2 6 1 1 Special Melee Weapon 1 | . . . . . . . 1 . . . . . . . . . . . . . . . . Unidentified Prototypes 24 | . . . . . 1 4 3 . 1 . 1 . . . . 2 . . 4 . 7 1 . Corrupted Parts 1 | . . 1 . . . . . . . . . . . . . . . . . . . . . System Corruption 1 | . . 1 . . . . . . . . . . . . . . . . . . . . . Parts Lost 71 | . 2 7 . . 2 2 1 . . . . 2 6 1 . 4 . 5 7 1 21 1 9 Power 9 | . . 1 . . 1 . . . . . . 2 . . . . . 1 . . 3 . 1 Propulsion 28 | . . 3 . . 1 1 . . . . . . 5 1 . 1 . 3 4 . 6 . 3 Utility 27 | . . 1 . . . 1 1 . . . . . 1 . . 3 . 1 3 1 10 1 4 Weapon 7 | . 2 2 . . . . . . . . . . . . . . . . . . 2 . 1 Highest Loss Streak 10 | . 1 6 . . 1 1 1 . . . . 1 6 7 . 4 . 5 4 1 10 1 3 To Critical Strikes . | . . . . . . . . . . . . . . . . . . . . . . . . Average Slot Usage (%) 85 | . 99 87 65 71 77 88 98 97 100 . 99 99 96 60 64 96 99 96 86 96 81 64 74 Engine 6 | . 14 13 14 14 8 9 7 6 6 . 6 5 5 . . . . 1 4 . . . . Reactor 2 | . . . . . . . . . . . . . . . . 4 5 3 . 2 8 4 6 Treads 11 | . 28 10 . . 3 34 . . . . . . . . . . . . . . 9 . . Leg 1 | . . . . . . . . . . . . . . . . . . . 4 26 . 8 . Wheel 5 | . . 14 28 28 25 1 . . . . . . . . . . . . . . . . . Hover 2 | . . . . . . . . . . . . . . . . 23 26 24 14 . . . . Flight 5 | . . . . . . . 29 26 26 . 25 26 28 11 11 . . . . . 4 4 20 Device 5 | . 14 5 . . . . 4 4 6 . 4 . . 2 5 8 25 24 21 24 9 4 3 Storage 7 | . 14 14 14 14 9 9 7 6 6 . 6 6 4 5 5 5 5 5 5 5 3 6 4 Processor 10 | . . . . . 8 9 14 13 13 . 13 13 11 11 11 10 10 10 10 10 17 12 12 Hackware 12 | . . . . . 7 7 16 26 26 . 26 26 28 29 29 27 15 15 14 10 17 18 21 Energy Gun 1 | . 4 9 . . . . . . . . . . . . . . 3 4 5 . 1 . . Ballistic Gun 7 | . 23 16 8 14 15 12 1 . . . . . . . . . . . . . . . . Impact Weapon 2 | . . 2 . . . 5 7 6 6 . 6 6 4 . . 3 5 5 . . . . . Naked Turns . | . . . . . . . . . . . . . . . . . . . . . . . . Heaviest Build 219 | 13 32 32 217 217 218 219 219 21 21 21 21 21 28 10 10 50 59 59 77 77 89 53 47 Greatest Support 168 | 40 40 40 20 20 36 88 88 21 21 21 24 24 30 18 12 64 59 59 120 120 168 105 44 Greatest Overweight (x) 72 | . . 1 10 10 10 72 2 . . . 3 . . . . 1 . 1 2 . 3 4 1 Average Overweight (x) . | . . . 2 10 5 2 . . . . . . . . . . . . . . . . . Largest Inventory Capacity 35 | 8 15 15 35 35 35 35 35 10 10 10 10 10 10 10 10 10 15 15 15 15 15 5 5 Average Capacity 20 | 8 14 15 20 35 35 35 10 10 10 10 10 10 9 10 10 10 11 15 15 15 14 5 5 Most Carried 35 | 6 15 15 11 15 34 35 35 7 8 8 10 10 10 8 8 10 10 14 15 15 15 5 5 Average Carried 17 | 4 10 11 10 12 27 34 9 6 6 8 8 10 9 7 8 9 9 12 13 14 13 2 4 Final Capacity 35 | 8 15 15 35 35 35 35 10 10 10 10 10 10 10 10 10 10 15 15 15 15 5 5 5 Final Carried 35 | 4 15 9 11 15 34 35 8 6 8 8 10 10 7 8 8 8 10 11 13 15 2 4 4 Class Distribution -------------------- 36% | Hauler-Mutant 16% | Hacker-Scout 11% | Hacker-Skirmisher 10% | Hacker-Mutant 9% | Mutant 6% | Hacker-Assassin Dominant Class ---------------- Mutant | -10/Materials Mutant | -10/Mines Mutant | -10/Exiles Hauler-Mutant | -9/Mines Hauler-Mutant | -8/Materials Hauler-Mutant | -8/Storage Hacker-Scout | -7/Factory Hacker-Ninja | -6/Factory Hacker-Ninja | -6/Waste Hacker-Ninja | -6/Factory Hacker-Assassin | -6/DSF Hacker-Scout | -6/Garrison Hacker-Scout | -5/Factory Hacker-Mutant | -5/Upper Caves Hacker-Mutant | -5/Upper Caves Hacker-Scout | -4/Factory Hacker-Mutant | -4/Upper Caves Hacker-Mutant | -4/Upper Caves Hacker-Mutant | -4/Warlord Scavenger-Mutant | -3/Proximity Caves Hacker-Skirmisher | -3/Research Hacker-Skirmisher | -2/Research Hacker-Scout | -1/Access Resources | -11 -10 -10 -10 -9 -8 -8 -7 -6 -6 -6 -6 -6 -5 -5 -5 -4 -4 -4 -4 -3 -3 -2 -1 ----------- Run | Yrd Mat Min Exi Min Mat Sto Fac Fac Was Fac DSF Gar Fac Upp Upp Fac Upp Upp War Pro Res Res Acc Matter Collected 5818 | 242 222 95 . 63 505 1395 327 . 70 . 60 . . 28 . 401 87 10 470 79 1020 547 197 Remotely . | . . . . . . . . . . . . . . . . . . . . . . . . Salvage Created 6754 | 123 500 97 . 93 1118 1341 121 . . . . 243 77 . . 594 . 96 98 188 1684 142 239 Parts 349 | 4 30 12 . 3 81 63 8 . . . . 8 9 . . 14 . 7 . 9 88 2 11 Haulers Intercepted 13 | . 1 . . . 3 4 1 . . . . . . . . 3 . . . . 1 . . Recyclers Shooed 1 | . . . . . . 1 . . . . . . . . . . . . . . . . . Parts Field Recycled . | . . . . . . . . . . . . . . . . . . . . . . . . Retrieved Matter . | . . . . . . . . . . . . . . . . . . . . . . . . Parts Self-Destructed 16 | . . . . . . . . . . . . . . 4 . . . 4 . 8 . . . Prevented 3 | . . . . . . . . . . . . . . 1 . . . 2 . . . . . Kills | -11 -10 -10 -10 -9 -8 -8 -7 -6 -6 -6 -6 -6 -5 -5 -5 -4 -4 -4 -4 -3 -3 -2 -1 ------- Run | Yrd Mat Min Exi Min Mat Sto Fac Fac Was Fac DSF Gar Fac Upp Upp Fac Upp Upp War Pro Res Res Acc Combat Hostiles Destroyed 130 | . 12 4 . 2 20 21 . . . . . 4 10 . . 9 . 6 5 5 24 4 4 Melee 15 | . . . . . . 1 . . . . . 2 . . . 3 . 1 . 5 3 . . Guns 56 | . 10 4 . 2 20 13 . . . . . . . . . . . . 2 . 5 . . Cannons 12 | . . . . . . . . . . . . . . . . 1 . . . . 11 . . AOE 34 | . 2 . . . . 4 . . . . . . 10 . . . . 4 3 . 4 3 4 Classes Destroyed 17 | 2 3 1 . 1 5 . . . . . . . . . . . . . 1 1 2 1 . Worker 8 | . . 1 . . . 2 1 . . . . . . . . . . . . . 3 . 1 Builder 7 | . . . . . 1 5 . . . . . . . . . 1 . . . . . . . Tunneler 3 | 1 . . . . . . . . . . . . . . . . . . . . 2 . . Hauler 13 | . 1 . . . 3 4 1 . . . . . . . . 3 . . . . 1 . . Recycler 4 | 1 . . . . . 1 . . . . . . . . . . . . . . 2 . . Operator 1 | . . . . . . . . . . . . . . . . . . . . . 1 . . Watcher 12 | . . . . . 3 2 3 . . . . . . . . 1 . . . . 2 . 1 Swarmer 46 | . 3 4 . . 4 4 . . . . . . 10 . . 8 . 6 . 3 . . 4 Grunt 39 | . 9 . . 1 9 7 . . . . . 1 . . . . . . . . 11 1 . Brawler 5 | . . . . . 1 . . . . . . 2 . . . . . . 2 . . . . Duelist 3 | . . . . 1 . 1 . . . . . . . . . . . . 1 . . . . Protector 1 | . . . . . . . . . . . . . . . . . . . 1 . . . . Sentry 18 | . . . . . 4 9 . . . . . 1 . . . 1 . . . . 2 1 . Specialist 3 | . . . . . 2 . . . . . . . . . . . . . 1 . . . . Hunter 2 | . . . . . . . . . . . . . . . . . . . . . . 2 . Programmer 12 | . . . . . . . . . . . . . . . . . . . . 2 10 . . Heavy 1 | . . . . . . . . . . . . . . . . . . . . . 1 . . Thug 1 | . . . . . 1 . . . . . . . . . . . . . . . . . . Best Kill Streak 10 | 2 6 4 . 2 4 7 1 . . . . 2 10 . . 4 . 4 3 3 9 2 4 Combat Bots Only 10 | . 5 3 . 2 4 4 . . . . . 2 10 . . 4 . 4 3 3 6 2 4 Max Kills in Single Turn 4 | 1 1 1 . 1 2 4 1 . . . . 1 3 . . 1 . 3 2 1 3 2 2 Gunslinging 1 | . . . . . 1 . . . . . . . . . . . . . . . . . . Exploded 3 | . 1 . . . . 3 . . . . . . 3 . . . . 3 2 . 2 2 2 Melee 1 | . . . . . . 1 . . . . . 1 . . . 1 . 1 . 1 1 . . Uniques/NPCs Destroyed . | . . . . . . . . . . . . . . . . . . . . . . . . Combat | -11 -10 -10 -10 -9 -8 -8 -7 -6 -6 -6 -6 -6 -5 -5 -5 -4 -4 -4 -4 -3 -3 -2 -1 -------- Run | Yrd Mat Min Exi Min Mat Sto Fac Fac Was Fac DSF Gar Fac Upp Upp Fac Upp Upp War Pro Res Res Acc Hostile Shots Fired 1288 | . 56 83 . . 69 107 52 . . . . 25 59 6 1 72 4 69 63 47 458 8 109 Missed 422 | . 13 18 . . 25 27 27 . . . . 13 29 3 1 30 4 32 24 14 91 7 64 Damage Taken 16106 | . 489 710 . . 600 1512 322 . . . 40 264 519 60 . 1033 . 673 849 672 7261 196 906 Core 1990 | . 54 156 . . 62 153 44 . . . . 46 52 38 . 158 . 42 112 24 822 11 216 Absorbed by Shields 964 | . . . . . . . . . . . . . . . . 34 . 74 . 78 778 . . Reduced by Siege Mode 986 | . . . . . . . . . . . . . . . . . . . . . 986 . . Redirected to Shielding 293 | . . . . . . . . . . . . 71 89 . . 133 . . . . . . . Regen/Repaired (Parts) 453 | . . . . . . . 132 . 18 . . 21 . . . . . . 282 . . . . Core Remaining (%) 74 | 100 . . . 16 . 60 93 . . . . 94 . . 91 . . . . 70 36 99 86 Volleys Fired 378 | 4 46 17 . . 52 77 . . . . . . 7 . . 5 1 2 35 2 100 16 14 Largest 2 | 2 2 2 . . 2 2 . . . . . . 1 . . 1 1 1 2 1 2 1 1 Hottest 260 | 60 60 90 . . 50 50 . . . . . . 43 . . 88 94 43 260 260 188 60 94 Shots Fired 655 | 8 92 29 . 3 130 157 . . . . . . 7 . . 6 1 2 45 2 143 16 14 Gun 478 | 8 92 29 . 3 130 155 . . . . . . . . . . 1 . 28 . 32 . . Cannon 116 | . . . . . . . . . . . . . . . . 6 . . 3 1 103 . 3 Launcher 61 | . . . . . . 2 . . . . . . 7 . . . . 2 14 1 8 16 11 Special . | . . . . . . . . . . . . . . . . . . . . . . . . Kinetic 428 | 4 71 14 . 3 130 155 . . . . . . . . . . . . 3 1 47 . . Thermal 94 | . . . . . . . . . . . . . . . . . 1 . 9 1 83 . . Explosive 51 | . . . . . . 2 . . . . . . 7 . . . . 2 13 . 8 13 6 Electromagnetic 57 | 4 21 15 . . . . . . . . . . . . . 6 . . . . . 3 8 Entropic 25 | . . . . . . . . . . . . . . . . . . . 20 . 5 . . Robot Hit Streak 37 | 3 8 4 . 2 9 37 . . . . . . 2 . . 5 . 6 9 1 22 1 3 Robot Miss Streak 7 | 1 4 4 . 1 7 3 . . . . . . 2 . . . . . 5 1 3 2 4 Penetration Max . | . . . . . . . . . . . . . . . . . . . . . . . . Secondary Targets 5 | . 1 1 . . 3 . . . . . . . . . . . . . . . . . . Max Gunslinging Chain 1 | . 1 1 . . 1 . . . . . . . . . . . . . . . . . . Autonomous 31 | . . . . 3 28 . . . . . . . . . . . . . . . . . . Shots Hit Robots 514 | 4 54 20 . 2 92 126 9 . . . . 25 2 . . 23 . 6 23 9 116 1 2 Core Hits 290 | 2 22 8 . 2 49 42 3 . . . . 2 10 . . 4 . 5 38 4 66 10 23 Critical Kills 9 | . 1 . . . 1 1 2 . . . . 1 . . . . . 1 . . 2 . . Critical Parts Destroyed 23 | . . . . . . 6 1 . . . . 5 . . . 6 . 2 1 . 2 . . Critical Strikes 40 | . 2 . . . 1 8 3 . . . . 6 . . . 6 . 3 2 1 8 . . Destroy 8 | . 1 . . . 1 2 . . . . . . . . . . . . . . 4 . . Blast 3 | . . . . . . . . . . . . . . . . . . . 1 . 2 . . Corrupt 1 | . 1 . . . . . . . . . . . . . . . . . . . . . . Smash 24 | . . . . . . 6 3 . . . . 6 . . . 6 . 3 . . . . . Detonate 1 | . . . . . . . . . . . . . . . . . . . 1 . . . . Sunder 3 | . . . . . . . . . . . . . . . . . . . . 1 2 . . Melee Attacks 291 | . . 5 . . . 60 58 2 . . 6 50 1 . . 39 4 9 . 17 21 1 18 Impact 222 | . . 5 . . . 60 56 2 . . 6 38 1 . . 39 4 9 . . 2 . . Slashing . | . . . . . . . . . . . . . . . . . . . . . . . . Piercing 18 | . . . . . . . . . . . . . . . . . . . . . . . 18 Entropic 37 | . . . . . . . . . . . . . . . . . . . . 17 19 1 . Sneak Attacks 26 | . . . . . . 5 4 . . . . 12 . . . 3 . . . . 2 . . Combat Hostiles 2 | . . . . . . . . . . . . 2 . . . . . . . . . . . Follow-up Attacks . | . . . . . . . . . . . . . . . . . . . . . . . . Damage Inflicted 21515 | 60 927 261 . 66 1817 3029 483 . . . . 529 1046 . . 1275 . 642 2627 688 6432 736 897 Guns 6255 | 59 710 246 . 66 1817 1819 . . . . . . . . . . . . 710 . 828 . . Cannons 3137 | . . . . . . . . . . . . . . . . 156 . . 84 57 2840 . . Explosions 7025 | . 217 . . . . 455 . . . . . . 1046 . . . . 355 1833 . 1486 736 897 Melee 4903 | . . 15 . . . 755 483 . . . . 529 . . . 988 . 237 . 631 1265 . . Ramming 195 | 1 . . . . . . . . . . . . . . . 131 . 50 . . 13 . . Kinetic 5646 | 29 505 95 . 66 1817 1819 . . . . . . . . . . . . 84 57 1174 . . Thermal 2804 | . 217 . . . . . . . . . . . . . . . . . 293 . 2294 . . Explosive 6147 | . . . . . . 455 . . . . . . 1046 . . . . 355 1723 . 1486 658 424 Electromagnetic 1093 | 30 205 151 . . . . . . . . . . . . . 156 . . . . . 78 473 Impact 3059 | . . 15 . . . 755 483 . . . . 529 . . . 988 . 237 . . 52 . . Slashing . | . . . . . . . . . . . . . . . . . . . . . . . . Piercing . | . . . . . . . . . . . . . . . . . . . . . . . . Entropic 2571 | . . . . . . . . . . . . . . . . . . . 527 631 1413 . . Highest Corruption 11 | . . 1 1 1 5 10 1 . . . . 3 . . . 6 6 11 11 5 2 . . Average Corruption 4 | . . 1 1 1 5 5 1 . . . . 3 . . . 4 6 7 3 3 1 . . Corruption Purged . | . . . . . . . . . . . . . . . . . . . . . . . . Corruption Blocked 86 | . . . . . . . . . . . . . . . . . . . 15 . 28 43 . Effects 188 | . . 1 1 3 45 110 6 . . . . 3 . . . 1 5 6 2 5 . . . Message Errors 38 | . . 1 . . 8 22 1 . . . . 2 . . . . . 2 . 2 . . . Matter Fused 49 | . . . . 1 10 30 2 . . . . . . . . . 2 2 1 1 . . . Heat Flow Errors 21 | . . . . 1 4 12 1 . . . . . . . . . 2 . . 1 . . . Energy Discharges 16 | . . . 1 . 3 10 . . . . . 1 . . . . . 1 . . . . . Parts Rejected 2 | . . . . . . 2 . . . . . . . . . . . . . . . . . Parts Fused 2 | . . . . . 1 1 . . . . . . . . . . . . . . . . . Data Loss (minor) 28 | . . . . . 10 15 1 . . . . . . . . . . 1 1 . . . . Data Loss (major) 13 | . . . . 1 2 7 1 . . . . . . . . . 1 . . 1 . . . Misfires 11 | . . . . . 3 7 . . . . . . . . . 1 . . . . . . . Alerts 7 | . . . . . 4 3 . . . . . . . . . . . . . . . . . Weapon Failures 1 | . . . . . . 1 . . . . . . . . . . . . . . . . . Overload Shots . | . . . . . . . . . . . . . . . . . . . . . . . . Overflow Damage 2162 | . 10 . . . . 465 102 . . . . 231 39 . . 605 . 134 31 152 364 29 . Projectiles 72 | . . . . . . . . . . . . . . . . . . . . . 72 . . Explosions 150 | . 10 . . . . 21 . . . . . . 39 . . . . 4 31 . 16 29 . Melee 1940 | . . . . . . 444 102 . . . . 231 . . . 605 . 130 . 152 276 . . Knockbacks 21 | . . . . . . 4 . . . . . . . . . 1 . 2 . . 14 . . Impact 7 | . . . . . . 3 . . . . . . . . . 1 . 2 . . 1 . . Kinetic 12 | . . . . . . . . . . . . . . . . . . . . . 12 . . Secondary 2 | . . . . . . 1 . . . . . . . . . . . . . . 1 . . Self-Inflicted Damage 324 | . . . . . . . . . . . . . 40 . . 64 . 25 . . 61 118 16 Shots 6 | . . . . . . . . . . . . . 1 . . . . . . . 2 2 1 Rammed 10 | 1 . . . . . . . . . . . . . . . 6 . 1 . . 2 . . Targets Rammed 10 | 1 . . . . . . . . . . . . . . . 6 . 1 . . 2 . . Kicked . | . . . . . . . . . . . . . . . . . . . . . . . . Crushed . | . . . . . . . . . . . . . . . . . . . . . . . . Highest Temperature 276 | . 94 45 . 258 220 265 211 . . . . 1 4 4 . 105 159 34 160 178 276 10 96 Average Temperature 63 | . 30 21 . 134 79 42 82 . . . . 1 4 4 . 27 69 14 57 92 106 6 42 Received Heat Transfer 2588 | . 234 . . . 252 441 62 . . . . 33 . 36 . 87 . 59 108 . 1267 . 9 Effects 1 | . . . . . 1 . . . . . . . . . . . . . . . . . . Interference 1 | . . . . . 1 . . . . . . . . . . . . . . . . . . Siege Activations 11 | . . . . . . . . . . . . . . . . . . . . . 11 . . Total Turns 672 | . . . . . . . . . . . . . . . . . . . . . 672 . . Longest Duration 417 | . . . . . . . . . . . . . . . . . . . . . 417 . . Robots Corrupted 2 | . . . . . . . . . . . . . . . . 1 . . . . . 1 . Combat Hostiles 2 | . . . . . . . . . . . . . . . . 1 . . . . . 1 . Parts Fried 28 | . . . . . . 7 2 . . . . . . . . 13 . . . . 2 1 3 Impact Corruptions 52 | . . . . . . 13 4 . . . . 6 . . . 23 . 5 . . 1 . . Robots Melted 1 | . . . . . . . . . . . . . . . . . . . . . 1 . . Combat Hostiles 1 | . . . . . . . . . . . . . . . . . . . . . 1 . . Parts Melted 7 | . . . . . . . . . . . . . . . . . . . . . 7 . . Heat Transferred 2667 | . 200 . . . . . . . . . . . . . . . . . 284 . 2183 . . Parts Sabotaged . | . . . . . . . . . . . . . . . . . . . . . . . . Parts Stolen . | . . . . . . . . . . . . . . . . . . . . . . . . Parts Stripped . | . . . . . . . . . . . . . . . . . . . . . . . . Power Chain Reactions 3 | . 3 . . . . . . . . . . . . . . . . . . . . . . Alert | -11 -10 -10 -10 -9 -8 -8 -7 -6 -6 -6 -6 -6 -5 -5 -5 -4 -4 -4 -4 -3 -3 -2 -1 ------- Run | Yrd Mat Min Exi Min Mat Sto Fac Fac Was Fac DSF Gar Fac Upp Upp Fac Upp Upp War Pro Res Res Acc Peak Influence 1357 | 10 219 85 . 54 288 661 456 64 22 15 270 1357 1135 . . 714 . . . . 365 340 597 Initial 667 | . 6 27 . . . 94 294 17 22 15 10 202 667 . . 408 . . . . 74 195 204 Average 222 | 5 76 37 . 21 94 361 251 35 22 15 185 809 767 . . 528 . . . . 54 95 400 Maximum Alert Level 4 | . 1 . . . 1 2 2 . . . 1 4 4 . . 3 . . . . 1 1 2 Low Security (%) 54 | 100 94 100 . 100 87 9 30 100 100 100 38 . . . . . . . . . 98 69 4 Level 1 27 | . 5 . . . 12 58 63 . . . 61 10 . . . . . . . . 1 30 45 Level 2 15 | . . . . . . 31 5 . . . . 28 34 . . 96 . . . . . . 49 Level 3 1 | . . . . . . . . . . . . 29 56 . . 3 . . . . . . . Level 4 1 | . . . . . . . . . . . . 32 8 . . . . . . . . . . Level 5 . | . . . . . . . . . . . . . . . . . . . . . . . . High Security . | . . . . . . . . . . . . . . . . . . . . . . . . Max Security . | . . . . . . . . . . . . . . . . . . . . . . . . Sterilizations 1 | . . . . . . . . . . . 1 . . . . . . . . . . . . Squads Dispatched 34 | . 3 . . . 4 6 2 1 . . 1 . . . . 2 . 1 . . 8 2 4 Investigation 11 | . 3 . . . 2 3 . 1 . . . . . . . . . . . . . . 2 Extermination 6 | . . . . . . . 1 . . . . . . . . 1 . . . . 4 . . Reinforcement 13 | . . . . . 2 1 1 . . . 1 . . . . . . . . . 4 2 2 Assault 3 | . . . . . . 1 . . . . . . . . . 1 . 1 . . . . . Garrison 1 | . . . . . . 1 . . . . . . . . . . . . . . . . . Intercept . | . . . . . . . . . . . . . . . . . . . . . . . . Searches Triggered 1 | . . . . . . . . . . . . . . . . . . . . . . . 1 Construction Impeded 3 | . . . . . . 1 . . . . . . . . . . . . . . 2 . . Haulers Reinforced . | . . . . . . . . . . . . . . . . . . . . . . . . Active Scanning Responses . | . . . . . . . . . . . . . . . . . . . . . . . . Cargo Convoy Interrupts . | . . . . . . . . . . . . . . . . . . . . . . . . Stealth | -11 -10 -10 -10 -9 -8 -8 -7 -6 -6 -6 -6 -6 -5 -5 -5 -4 -4 -4 -4 -3 -3 -2 -1 --------- Run | Yrd Mat Min Exi Min Mat Sto Fac Fac Was Fac DSF Gar Fac Upp Upp Fac Upp Upp War Pro Res Res Acc Distress Signals 28 | . 1 . . . 2 3 2 . . . . . 1 . . 4 . . . . 1 8 6 Communications Jammed 16 | . . . . . . . . 1 . . . . . . . . . . . . 15 . . Distress Signals 16 | . . . . . . . . 1 . . . . . . . . . . . . 15 . . Times Spotted 418 | . 24 8 . 1 38 33 25 2 . . 2 29 19 7 4 31 6 14 45 5 52 15 58 Peak Tracking Total 13 | . 5 5 . 1 6 4 6 1 . . 3 9 12 4 4 12 5 12 10 3 13 3 10 Tactical Retreats 47 | . 1 . . . . 6 8 . . . . . 3 2 . 4 2 2 . . 3 2 14 Traps | -11 -10 -10 -10 -9 -8 -8 -7 -6 -6 -6 -6 -6 -5 -5 -5 -4 -4 -4 -4 -3 -3 -2 -1 ------- Run | Yrd Mat Min Exi Min Mat Sto Fac Fac Was Fac DSF Gar Fac Upp Upp Fac Upp Upp War Pro Res Res Acc Traps Triggered 17 | . 3 . . . 2 2 3 1 . . . 1 2 . . . . . . . . . 3 Indirectly 3 | . . . . . . . . . . . . . . . . . . . . . . . 3 Trap Hack Attempts . | . . . . . . . . . . . . . . . . . . . . . . . . Triggered . | . . . . . . . . . . . . . . . . . . . . . . . . Disarmed . | . . . . . . . . . . . . . . . . . . . . . . . . Reprogrammed . | . . . . . . . . . . . . . . . . . . . . . . . . Reused . | . . . . . . . . . . . . . . . . . . . . . . . . Traps Extracted . | . . . . . . . . . . . . . . . . . . . . . . . . Installed . | . . . . . . . . . . . . . . . . . . . . . . . . Triggered 23 | . . . . . . . . . . . . . . . . . 1 . 22 . . . . Machines | -11 -10 -10 -10 -9 -8 -8 -7 -6 -6 -6 -6 -6 -5 -5 -5 -4 -4 -4 -4 -3 -3 -2 -1 ---------- Run | Yrd Mat Min Exi Min Mat Sto Fac Fac Was Fac DSF Gar Fac Upp Upp Fac Upp Upp War Pro Res Res Acc Machines Disabled 17 | . . . . . 2 4 1 . . . 1 4 1 . . . . . 2 . 1 1 . Max in Single Turn 1 | . . . . . 1 1 1 . . . . 1 1 . . . . . 1 . 1 1 . Garrison Access 9 | . . . . . 1 1 3 . . . . . 1 . . 1 . . . . 2 . . Garrison Relay 3 | . . . . . . . . . . . . 3 . . . . . . . . . . . Machines Repaired . | . . . . . . . . . . . . . . . . . . . . . . . . Machines Dismantled . | . . . . . . . . . . . . . . . . . . . . . . . . Machines Sabotaged . | . . . . . . . . . . . . . . . . . . . . . . . . Overloaded Fab Kills . | . . . . . . . . . . . . . . . . . . . . . . . . Hacking | -11 -10 -10 -10 -9 -8 -8 -7 -6 -6 -6 -6 -6 -5 -5 -5 -4 -4 -4 -4 -3 -3 -2 -1 --------- Run | Yrd Mat Min Exi Min Mat Sto Fac Fac Was Fac DSF Gar Fac Upp Upp Fac Upp Upp War Pro Res Res Acc Machines Accessed 86 | . 8 . 1 . 8 14 21 1 . 1 . 1 5 . . 7 . . 6 . 5 2 6 Terminals 56 | . 8 . . . 7 12 12 1 . 1 . 1 3 . . 2 . . . . 2 2 5 Fabricators 2 | . . . . . . . 1 . . . . . . . . 1 . . . . . . . Repair Stations 5 | . . . . . . . 3 . . . . . 1 . . 1 . . . . . . . Recycling Units 5 | . . . . . . 1 1 . . . . . . . . 2 . . . . . . 1 Scanalyzers 2 | . . . . . . . 1 . . . . . . . . . . . . . 1 . . Garrison Access 9 | . . . . . 1 1 3 . . . . . 1 . . 1 . . . . 2 . . Total Hacks 222 | . 18 . 1 . 18 31 61 2 . 1 . 3 16 . . 14 . . 16 . 11 6 24 Successful 119 | . 9 . 1 . 12 14 29 . . 1 . 1 9 . . 12 . . 16 . 4 3 8 Failed 103 | . 9 . . . 6 17 32 2 . . . 2 7 . . 2 . . . . 7 3 16 Catastrophic 14 | . . . . . 1 1 4 1 . . . . . . . . . . . . 1 2 4 Database Lockouts . | . . . . . . . . . . . . . . . . . . . . . . . . Manual 111 | . 13 . 1 . 10 12 33 2 . . . . 12 . . 8 . . . . 6 4 10 Terminals 156 | . 18 . . . 17 28 38 2 . 1 . 3 12 . . 6 . . . . 5 6 20 Fabricators 4 | . . . . . . . 2 . . . . . . . . 2 . . . . . . . Repair Stations 17 | . . . . . . . 15 . . . . . 1 . . 1 . . . . . . . Recycling Units 10 | . . . . . . 1 1 . . . . . . . . 4 . . . . . . 4 Scanalyzers 3 | . . . . . . . 1 . . . . . . . . . . . . . 2 . . Garrison Access 15 | . . . . . 1 2 4 . . . . . 3 . . 1 . . . . 4 . . Terminal Hacks 66 | . 4 . 1 . 7 9 11 . . 1 . 1 5 . . 2 . . 16 . . 3 6 Record 19 | . . . . . . . . . . . . . . . . 1 . . 15 . . 1 2 Prototype ID Bank 8 | . 3 . . . 2 . 2 . . . . . 1 . . . . . . . . . . Open Door 5 | . . . . . . 3 . . . . . . . . . . . . 1 . . . 1 Open DSF 1 | . . . . . . . . . . 1 . . . . . . . . . . . . . Level Access Points 2 | . . . . . . . . . . . . . . . . . . . . . . 1 1 Branch Access Points 3 | . . . . . . . 1 . . . . . 1 . . 1 . . . . . . . Emergency Access Points 2 | . . . . . . 1 . . . . . 1 . . . . . . . . . . . Terminal Index 5 | . 1 . . . 1 1 1 . . . . . 1 . . . . . . . . . . Alert Level 5 | . . . . . 1 1 1 . . . . . . . . . . . . . . 1 1 Unreport Threat 3 | . . . . . . . 2 . . . . . . . . . . . . . . . 1 Locate Traps 4 | . . . . . 1 1 2 . . . . . . . . . . . . . . . . Hauler Manifests 3 | . . . . . 1 1 1 . . . . . . . . . . . . . . . . Registered Components 2 | . . . . . 1 . . . . . . . 1 . . . . . . . . . . Registered Prototypes 1 | . . . . . . . . . . . . . 1 . . . . . . . . . . Zone Layout 2 | . . . . . . 1 1 . . . . . . . . . . . . . . . . Derelict Proto ID Bank 1 | . . . 1 . . . . . . . . . . . . . . . . . . . . Fabricator Hacks 2 | . . . . . . . 1 . . . . . . . . 1 . . . . . . . Network Status 2 | . . . . . . . 1 . . . . . . . . 1 . . . . . . . Repair Station Hacks 7 | . . . . . . . 7 . . . . . . . . . . . . . . . . Scan Component 4 | . . . . . . . 4 . . . . . . . . . . . . . . . . Repair 3 | . . . . . . . 3 . . . . . . . . . . . . . . . . Recycling Unit Hacks 6 | . . . . . . 1 . . . . . . . . . 3 . . . . . . 2 Report Inventory 5 | . . . . . . 1 . . . . . . . . . 2 . . . . . . 2 Retrieve Components 1 | . . . . . . . . . . . . . . . . 1 . . . . . . . Scanalyzer . | . . . . . . . . . . . . . . . . . . . . . . . . Garrison Access Hacks 9 | . . . . . 1 1 3 . . . . . 1 . . 1 . . . . 2 . . Seal Access 9 | . . . . . 1 1 3 . . . . . 1 . . 1 . . . . 2 . . Unauthorized Hacks 29 | . 5 . . . 4 3 7 . . . . . 3 . . 5 . . . . 2 . . Terminals 23 | . 5 . . . 4 3 5 . . . . . 2 . . 2 . . . . 2 . . Assimilate 8 | . 2 . . . . . 3 . . . . . . . . 2 . . . . 1 . . Botnet 8 | . 2 . . . 2 2 1 . . . . . 1 . . . . . . . . . . Operators 7 | . 1 . . . 2 1 1 . . . . . 1 . . . . . . . 1 . . Fabricators 2 | . . . . . . . 1 . . . . . . . . 1 . . . . . . . Haulers 2 | . . . . . . . 1 . . . . . . . . 1 . . . . . . . Repair Stations 2 | . . . . . . . . . . . . . 1 . . 1 . . . . . . . Mechanics 2 | . . . . . . . . . . . . . 1 . . 1 . . . . . . . Recycling Units 2 | . . . . . . . 1 . . . . . . . . 1 . . . . . . . Recyclers 2 | . . . . . . . 1 . . . . . . . . 1 . . . . . . . Scanalyzers . | . . . . . . . . . . . . . . . . . . . . . . . . Garrison Access . | . . . . . . . . . . . . . . . . . . . . . . . . Data Cores Recovered . | . . . . . . . . . . . . . . . . . . . . . . . . Used . | . . . . . . . . . . . . . . . . . . . . . . . . Hacking Detections 51 | . 6 . . . 5 10 14 1 . . . 1 4 . . 1 . . . . 4 1 4 Full Trace Events 4 | . . . . . . 2 . 1 . . . . . . . . . . . . . . 1 Feedback Events 1 | . . . . . . . . . . . . . . . . . . . . . . . 1 Hackware Fried 1 | . . . . . . . . . . . . . . . . . . . . . . . 1 Feedback Blocked . | . . . . . . . . . . . . . . . . . . . . . . . . Robot Schematics Acquired . | . . . . . . . . . . . . . . . . . . . . . . . . Robots Built . | . . . . . . . . . . . . . . . . . . . . . . . . Authchips . | . . . . . . . . . . . . . . . . . . . . . . . . Time . | . . . . . . . . . . . . . . . . . . . . . . . . Total Robot Build Rating . | . . . . . . . . . . . . . . . . . . . . . . . . Part Schematics Acquired . | . . . . . . . . . . . . . . . . . . . . . . . . Parts Built . | . . . . . . . . . . . . . . . . . . . . . . . . Authchips . | . . . . . . . . . . . . . . . . . . . . . . . . Time . | . . . . . . . . . . . . . . . . . . . . . . . . Total Part Build Rating . | . . . . . . . . . . . . . . . . . . . . . . . . Parts Repaired 3 | . . . . . . . 3 . . . . . . . . . . . . . . . . Time 193 | . . . . . . . 193 . . . . . . . . . . . . . . . . Parts Recycled . | . . . . . . . . . . . . . . . . . . . . . . . . Recycled Matter . | . . . . . . . . . . . . . . . . . . . . . . . . Retrieved Matter . | . . . . . . . . . . . . . . . . . . . . . . . . Retrieved Components 3 | . . . . . . . . . . . . . . . . 3 . . . . . . . Parts Scanalyzed . | . . . . . . . . . . . . . . . . . . . . . . . . Part Schematics Acquired . | . . . . . . . . . . . . . . . . . . . . . . . . Parts Damaged . | . . . . . . . . . . . . . . . . . . . . . . . . Bothacking | -11 -10 -10 -10 -9 -8 -8 -7 -6 -6 -6 -6 -6 -5 -5 -5 -4 -4 -4 -4 -3 -3 -2 -1 ------------ Run | Yrd Mat Min Exi Min Mat Sto Fac Fac Was Fac DSF Gar Fac Upp Upp Fac Upp Upp War Pro Res Res Acc Used RIF Installer . | . . . . . . . . . . . . . . . . . . . . . . . . Robots Hacked 1 | . . . . . . . 1 . . . . . . . . . . . . . . . . Non-combat 1 | . . . . . . . 1 . . . . . . . . . . . . . . . . Combat . | . . . . . . . . . . . . . . . . . . . . . . . . Robot Hacks Applied 1 | . . . . . . . 1 . . . . . . . . . . . . . . . . parse_system 1 | . . . . . . . 1 . . . . . . . . . . . . . . . . Relay Couplers Released 11 | . . . . . . . . . . . . 11 . . . . . . . . . . . Machine Destruction 11 | . . . . . . . . . . . . 11 . . . . . . . . . . . Fabnet Peak Effective % . | . . . . . . . . . . . . . . . . . . . . . . . . Robots Rewired 7 | . . . . . . . . . . . . 7 . . . . . . . . . . . Allies Hacked . | . . . . . . . . . . . . . . . . . . . . . . . . Hacks Repelled . | . . . . . . . . . . . . . . . . . . . . . . . . Allies | -11 -10 -10 -10 -9 -8 -8 -7 -6 -6 -6 -6 -6 -5 -5 -5 -4 -4 -4 -4 -3 -3 -2 -1 -------- Run | Yrd Mat Min Exi Min Mat Sto Fac Fac Was Fac DSF Gar Fac Upp Upp Fac Upp Upp War Pro Res Res Acc Total Allies 46 | . 1 . . 2 . 10 3 . 20 . . 7 . . . 2 . . . . 1 . . Largest Group 20 | . 1 1 . 2 2 10 1 . 20 . 20 16 . . . 1 . . . . 1 . . Highest-Rated Group 720 | . 10 10 . 57 57 173 26 . 720 . 720 612 . . . 45 . . . . 45 . . Highest-Rated Ally 46 | . 10 10 . 31 31 29 26 . 46 . 46 46 . . . 45 . . . . 45 . . Total Orders 13 | . . . . . . . 2 . . . . 1 . . . 6 . . . . 4 . . STAY 6 | . . . . . . . 1 . . . . . . . . 3 . . . . 2 . . FOLLOW 6 | . . . . . . . 1 . . . . . . . . 3 . . . . 2 . . GUARD 1 | . . . . . . . . . . . . 1 . . . . . . . . . . . Ally Attacks 276 | . . . . . 24 68 . . . . 65 119 . . . . . . . . . . . Total Damage 6113 | . . . . . 335 849 . . . . 1315 3614 . . . . . . . . . . . Kills 50 | . . . . . 4 11 . . . . 9 26 . . . . . . . . . . . Allies Corrupted 2 | . . . . . . . . . . . . 2 . . . . . . . . . . . Allies Melted 3 | . . . . . . 1 . . . . . . . . . . . . . . . 2 . Intel | -11 -10 -10 -10 -9 -8 -8 -7 -6 -6 -6 -6 -6 -5 -5 -5 -4 -4 -4 -4 -3 -3 -2 -1 ------- Run | Yrd Mat Min Exi Min Mat Sto Fac Fac Was Fac DSF Gar Fac Upp Upp Fac Upp Upp War Pro Res Res Acc Robot Analysis Total . | . . . . . . . . . . . . . . . . . . . . . . . . Derelict Logs Recovered 5 | . . . . 1 . . . . . . . . . . . . 2 2 . . . . . Drone Launches . | . . . . . . . . . . . . . . . . . . . . . . . . Drone Recoveries . | . . . . . . . . . . . . . . . . . . . . . . . . Exploration | -11 -10 -10 -10 -9 -8 -8 -7 -6 -6 -6 -6 -6 -5 -5 -5 -4 -4 -4 -4 -3 -3 -2 -1 ------------- Run | Yrd Mat Min Exi Min Mat Sto Fac Fac Was Fac DSF Gar Fac Upp Upp Fac Upp Upp War Pro Res Res Acc Turns Passed 19831 | 52 1140 509 304 1004 2014 4224 1825 33 155 2 224 642 184 135 8 797 223 197 1057 276 2960 1371 495 Spaces Moved 15966 | 21 586 348 265 424 943 1088 3125 78 308 4 178 730 520 349 21 1020 416 382 930 194 1238 1662 1136 Core 251 | . . . . . . 1 . . . . . . . . . . . . . . 19 231 . Treads 2476 | 21 586 68 . . . 1007 5 . . . . . . . . . . . . . 789 . . Legs 982 | . . . . . . . . . . . . . . . . . . . 135 194 45 608 . Wheels 1992 | . . 280 265 424 943 80 . . . . . . . . . . . . . . . . . Hover 2522 | . . . . . . . . . . . . . . . . 929 416 382 795 . . . . Flight 7743 | . . . . . . . 3120 78 308 4 178 730 520 349 21 91 . . . . 385 823 1136 Fastest Speed 17 | 160 160 95 80 230 161 161 17 26 26 26 26 31 28 34 37 36 42 40 45 116 50 29 29 Average Speed 90 | 160 160 109 111 230 173 308 29 26 26 26 84 31 28 36 37 43 42 41 82 116 144 69 30 Slowest Speed 3650 | 160 160 240 230 230 230 3650 305 26 26 26 280 31 34 37 37 120 42 102 181 116 307 367 109 Overloaded Moves 261 | . . . . . . . 68 . . . . . . . . 65 . 128 . . . . . Propulsion Burnouts . | . . . . . . . . . . . . . . . . . . . . . . . . Robots Hopped 16 | . . . . . . . 12 . 1 . . . . . . . . . . . . 3 . Cave-ins Triggered 2 | . . . . . . 1 . . . . . . . . . 1 . . . . . . . Exploration Rate (%) 56 | 3 93 63 60 95 74 97 72 5 96 . 96 72 17 67 6 18 61 60 95 53 30 40 31 Regions Visited 23 Branch Regions 10 Pre-discovered Areas 3 | . . . . 1 . . . . . . . . . 1 . . . 1 . . . . . Known Exits Taken 6 | . . . . 1 . . . . . 1 . . 1 . . 1 . . . . 1 1 . Unknown Exits Taken 13 | 1 1 1 1 . 1 1 1 . . . . . . 1 1 . 1 1 1 1 . . . Scrap Searched 13 | . . 1 . 3 . . . . . . . . . 3 1 . 3 . . 2 . . . Spaces Dug 198 | . . 3 . . . 15 43 2 . . 5 2 1 . . 10 5 15 5 . 43 35 14 Terrain Destroyed 498 | . 14 3 . 6 9 32 43 2 . . 5 2 53 . . 10 5 22 51 4 78 120 39 Melee 106 | . . 3 . . . 15 43 2 . . 5 2 1 . . 10 4 3 . . 3 1 14 Projectile 43 | . . . . 6 9 . . . . . . . . . . . 1 . 1 . 26 . . AOE 349 | . 14 . . . . 17 . . . . . . 52 . . . . 19 50 4 49 119 25 Terrain Rammed . | . . . . . . . . . . . . . . . . . . . . . . . . Walls Destroyed . | . . . . . . . . . . . . . . . . . . . . . . . . Machines Disabled . | . . . . . . . . . . . . . . . . . . . . . . . . Actions | -11 -10 -10 -10 -9 -8 -8 -7 -6 -6 -6 -6 -6 -5 -5 -5 -4 -4 -4 -4 -3 -3 -2 -1 --------- Run | Yrd Mat Min Exi Min Mat Sto Fac Fac Was Fac DSF Gar Fac Upp Upp Fac Upp Upp War Pro Res Res Acc Total 20314 | 31 697 436 275 454 1233 1741 3893 86 381 4 242 1068 546 353 20 1286 455 401 1167 227 2235 1855 1228 Wait 3027 | . 45 56 . 27 195 439 633 . 67 1 36 256 2 2 . 170 22 . 164 3 742 138 29 Move 15913 | 20 585 347 264 423 942 1087 3102 78 305 3 177 728 519 348 20 1018 415 381 929 193 1238 1656 1135 Hop 13 | . . . . . . . 10 . 1 . . . . . . . . . . . . 2 . Pick Up 135 | 1 14 . 6 4 23 14 17 . 2 . 7 . 2 . . 10 4 4 8 5 8 4 2 Fast Attach 137 | . 1 . 2 . 5 10 13 2 2 . 4 . 3 2 . 12 . . 8 . 41 23 9 Attach 69 | 1 2 6 . . 8 1 5 2 1 . 1 . 4 . . 7 3 3 4 . 12 2 7 Detach 28 | . . . 2 . 4 1 . . 1 . . . 3 1 . . 1 . 2 . 4 4 5 Swap 99 | 2 1 4 . . 1 23 13 . . . 1 . 3 . . 7 4 1 10 4 21 . 4 Drop 164 | 2 3 1 1 . 3 27 24 2 2 . 10 . 2 . . 12 1 . 7 4 49 9 5 Fire 378 | 4 46 17 . . 52 77 . . . . . . 7 . . 5 1 2 35 2 100 16 14 Melee 288 | . . 5 . . . 60 58 2 . . 6 50 1 . . 39 4 9 . 16 19 1 18 Ram 8 | . . . . . . . . . . . . . . . . 6 . 1 . . 1 . . Kick . | . . . . . . . . . . . . . . . . . . . . . . . . Crush 1 | 1 . . . . . . . . . . . . . . . . . . . . . . . Escape Stasis 54 | . . . . . . 2 18 . . . . 34 . . . . . . . . . . . Rewire . | . . . . . . . . . . . . . . . . . . . . . . . . Trap . | . . . . . . . . . . . . . . . . . . . . . . . . Miscellaneous . | . . . . . . . . . . . . . . . . . . . . . . . . Route ------- -11/Scrapyard -10/Materials (discovered 6 exits: [*Mat x3] / [*Min x2] / [*Sub]) -10/Mines (discovered 3 exits: [*Mat x2] / *Exi) -10/Exiles -9/Mines (discovered 2 exits: *Mat x2) -8/Materials (discovered 3 exits: *Fac x2 / *Sto) -8/Storage (discovered 2 exits: *Fac / [*Rec]) -7/Factory (discovered 4 exits: *Fac x2 / *Low x2) -6/Factory -6/Waste -6/Factory -6/DSF -6/Garrison (discovered 2 exits: *Fac x2) -5/Factory (discovered 2 exits: *Upp x2) -5/Upper Caves -5/Upper Caves -4/Factory (discovered 6 exits: *Res / *Upp x2 / *Ext x2 / Arm) -4/Upper Caves -4/Upper Caves -4/Warlord -3/Proximity Caves -3/Research (discovered 3 exits: *Res x2 / Qua) -2/Research (discovered 3 exits: *Acc x3) -1/Access To Epsilon Eridani History --------- Turn | Location | Event 5 | -11/Scrapyard | Discovered new exit (range 3) 53 | -11/Scrapyard | Entered Materials 318 | -10/Materials | Build established: Mutant 318 | -10/Materials | Discovered new exit (range 16) 353 | -10/Materials | Discovered new exit (range 12) 487 | -10/Materials | Discovered new exit (range 16) 702 | -10/Materials | Discovered new exit (range 15) 1090 | -10/Materials | Discovered new exit (range 13) 1107 | -10/Materials | Discovered new exit (range 10) 1193 | -10/Materials | Entered Mines 1193 | -10/Mines | Accompanied by 1 ally 1273 | -10/Mines | Assembled infested the area 1278 | -10/Mines | Assisted by a Guerilla fighting off Assembled 1397 | -10/Mines | Core integrity fell below 50% 1426 | -10/Mines | Core integrity fell below 20% 1441 | -10/Mines | Lost 6 parts (1p2n1u2w) 1496 | -10/Mines | Discovered new exit (range 13) 1684 | -10/Mines | Discovered new exit (range 10) 1698 | -10/Mines | Deemed a non-threat by the Exiles lab entrance 1698 | -10/Mines | Discovered new exit (range 5) 1702 | -10/Mines | Entered Exiles 1725 | -10/Exiles | Met 8R-AWN 1743 | -10/Exiles | Met EX-HEX 1770 | -10/Exiles | Met EX-BIN 1780 | -10/Exiles | Aligned with FarCom system 1781 | -10/Exiles | Given EX-Vault access code 1803 | -10/Exiles | Opened EX-Vault 1811 | -10/Exiles | Found AWS/Gauss 1834 | -10/Exiles | Warned to stay clear of 0b10 Research branches 1860 | -10/Exiles | Met EX-DEC 1891 | -10/Exiles | Discovered new exit (range 14) 2006 | -10/Exiles | Left Exiles lab with AWS/Gauss 2006 | -10/Exiles | Entered Mines 2019 | -9/Mines | Identified exit to Materials 2212 | -9/Mines | Build established: Hauler-Mutant 2334 | -9/Mines | Received a Rocket Launcher from a helpful Derelict 2913 | -9/Mines | Found a damaged Exp. Sensor Array with a note attached 2917 | -9/Mines | Found Prototype Device 2956 | -9/Mines | Learned location of Storage (-8) 2967 | -9/Mines | Discovered exit to Materials (range 6) 3010 | -9/Mines | Entered Materials 3010 | -8/Materials | Accompanied by 2 allies 3010 | -8/Materials | Evolved 4 slots: Propulsion x2, Utility x2 3015 | -8/Materials | Led the pair of lost Derelicts to an unsafe place 3303 | -8/Materials | Discovered new exit (range 20) 3431 | -8/Materials | Discovered new exit (range 20) 4044 | -8/Materials | Discovered new exit (range 20) 5024 | -8/Materials | Entered Storage 5547 | -8/Storage | Garrison activated, responded to threat 7686 | -8/Storage | Discovered new exit (range 5) 7859 | -8/Storage | Assisted by bots powering up and referring to "LRC-V3" 7978 | -8/Storage | Lost 3 allies 8595 | -8/Storage | Discovered new exit (range 4) 8619 | -8/Storage | Crushed by falling debris 8619 | -8/Storage | System corruption reached 10% 8624 | -8/Storage | First assault squad dispatched 8748 | -8/Storage | Lost 3 allies 9248 | -8/Storage | Entered Factory 9248 | -7/Factory | Evolved 2 slots: Utility x2 9565 | -7/Factory | Build established: Hacker-Scout 9831 | -7/Factory | Discovered new exit (range 4) 10120 | -7/Factory | Assembled infested ambush trap array 10201 | -7/Factory | Discovered new exit (range 3) 10245 | -7/Factory | Discovered new exit (range 18) 10716 | -7/Factory | Identified exit to Lower Caves 10784 | -7/Factory | Repaired Cld. VTOL Module? 10798 | -7/Factory | Repaired Cld. VTOL Module 10894 | -7/Factory | Repaired Broken Cld. VTOL Module 11073 | -7/Factory | Entered another Factory area 11073 | -6/Factory | Evolved 2 slots: Utility x2 11106 | -6/Factory | Sucked down chute 11106 | -6/Factory | Entered Waste 11107 | -6/Waste | Joined by Warlord forces that had cleared the area 11128 | -6/Waste | Found Prototype Device 11128 | -6/Waste | Identified Exp. Shield Generator 11191 | -6/Waste | Discovered new exit (range 11) 11261 | -6/Waste | Entered Factory 11261 | -6/Factory | Accompanied by 20 allies 11262 | -6/Factory | Identified exit to DSF 11263 | -6/Factory | Entered DSF 11263 | -6/DSF | Accompanied by 20 allies 11301 | -6/DSF | Additional patrols routed to DSF 11387 | -6/DSF | Discovered new exit (range 15) 11436 | -6/DSF | Lost 6 allies 11443 | -6/DSF | Sterilization system engaged 11463 | -6/DSF | Ambient heat levels rising (+10) 11478 | -6/DSF | Ambient heat levels rising (+10) 11487 | -6/DSF | Entered Garrison 11487 | -6/Garrison | Accompanied by 13 allies 11507 | -6/Garrison | Triggered checkpoint 11543 | -6/Garrison | Triggered checkpoint 11705 | -6/Garrison | Triggered checkpoint 11726 | -6/Garrison | P-60 Hacker assimilated allied Fighter 5b 11726 | -6/Garrison | Spotted B-75 Beast 11729 | -6/Garrison | Triggered checkpoint 11742 | -6/Garrison | Allies destroyed B-75 Beast 11856 | -6/Garrison | Garrison Relay disabled 11857 | -6/Garrison | Triggered checkpoint 11887 | -6/Garrison | Triggered checkpoint 11907 | -6/Garrison | Triggered checkpoint 11959 | -6/Garrison | Discovered new exit (range 11) 12021 | -6/Garrison | Lost 8 allies 12044 | -6/Garrison | Garrison Relay disabled 12082 | -6/Garrison | Attempted to access garrison exit controls, blocked by remote lockdown 12099 | -6/Garrison | Lost 7 allies 12126 | -6/Garrison | Discovered new exit (range 12) 12126 | -6/Garrison | Spotted B-90 Cyclops 12129 | -6/Garrison | Entered Factory 12129 | -5/Factory | Evolved 2 slots: Propulsion x1, Utility x1 12226 | -5/Factory | Identified exit to Upper Caves 12227 | -5/Factory | Spotted B-75 Beast 12313 | -5/Factory | Entered Upper Caves 12318 | -5/Upper Caves | Destroyed 10 combat bots 12345 | -5/Upper Caves | Lost 7 parts (6n1u) 12352 | -5/Upper Caves | Encountered a Warlord checkpoint 12379 | -5/Upper Caves | Met a Warlord Commander 12380 | -5/Upper Caves | Learned location of Warlord (-4) 12381 | -5/Upper Caves | Warlord Commander delivered Encrypted Comm Array 12382 | -5/Upper Caves | Found Encrypted Comm Array 12430 | -5/Upper Caves | Discovered new exit (range 14) 12448 | -5/Upper Caves | Entered another Upper Caves area 12453 | -5/Upper Caves | Discovered new exit (range 10) 12456 | -5/Upper Caves | Entered Factory 12456 | -4/Factory | Evolved 2 slots: Utility x2 12484 | -4/Factory | Identified exit to Upper Caves 12484 | -4/Factory | Identified exit to Extension 12484 | -4/Factory | Identified exit to Armory 12871 | -4/Factory | Discovered new exit (range 8) 12956 | -4/Factory | First assault squad dispatched 12956 | -4/Factory | Found Adv. Powered Armor 13198 | -4/Factory | Crushed by falling debris 13253 | -4/Factory | Entered Upper Caves 13256 | -4/Upper Caves | Lost 4 parts (1n3u) 13271 | -4/Upper Caves | Attracted the attention of an 0b10 checkpoint 13280 | -4/Upper Caves | Learned 12 Research zone layouts 13459 | -4/Upper Caves | Learned location of 1 exit from Research 13474 | -4/Upper Caves | Discovered new exit (range 5) 13476 | -4/Upper Caves | Entered another Upper Caves area 13515 | -4/Upper Caves | Build established: Hacker-Mutant 13555 | -4/Upper Caves | Attracted the attention of an 0b10 outpost 13599 | -4/Upper Caves | Ambushed by research squad 13603 | -4/Upper Caves | System corruption reached 10% 13648 | -4/Upper Caves | Lost 5 parts (1p3n1u) 13648 | -4/Upper Caves | Learned Research garrison access intel 13668 | -4/Upper Caves | Discovered new exit (range 10) 13673 | -4/Upper Caves | Entered Warlord 13703 | -4/Warlord | Discovered new exit (range 8) 13724 | -4/Warlord | System corruption cleaned by Quarantine Array 13860 | -4/Warlord | Met Warlord 13867 | -4/Warlord | Warlord's base attacked by MAIN.C 14186 | -4/Warlord | Found Prototype Energy Gun 14189 | -4/Warlord | Found Prototype Piercing Weapon 14190 | -4/Warlord | Identified Vortex Lance 14192 | -4/Warlord | Identified Vortex Rifle 14195 | -4/Warlord | Found Vortex Rifle 14197 | -4/Warlord | Found Vortex Lance 14217 | -4/Warlord | Warlord forces counterattacked 14316 | -4/Warlord | Found Prototype Special Weapon 14316 | -4/Warlord | Identified RU-N14's Throwing Claymores v3 14400 | -4/Warlord | Spotted Striker 14452 | -4/Warlord | Spotted Executioner 14454 | -4/Warlord | Spotted Executioner 14507 | -4/Warlord | Spotted Striker 14527 | -4/Warlord | P-70 Sage assimilated allied 3X-URR(m) 14542 | -4/Warlord | Warlord base infiltrated, sounded retreat 14567 | -4/Warlord | Lost 4 parts (2n2u) 14569 | -4/Warlord | Spotted Executioner 14584 | -4/Warlord | Spotted B-90 Cyclops 14585 | -4/Warlord | Spotted Striker 14592 | -4/Warlord | Spotted B-86 Titan 14650 | -4/Warlord | Lost 3 allies 14709 | -4/Warlord | Lost 3 allies 14730 | -4/Warlord | Entered Proximity Caves 14856 | -3/Proximity Caves | Build established: Scavenger-Mutant 14998 | -3/Proximity Caves | Discovered new exit (range 8) 15006 | -3/Proximity Caves | Entered Research 15006 | -3/Research | Evolved 2 slots: Power x1, Utility x1 15007 | -3/Research | Identified exit to Quarantine 15008 | -3/Research | Identified exit to Research 15009 | -3/Research | Loaded intel: 3 garrison access locations 15314 | -3/Research | Spotted B-86 Titan 15380 | -3/Research | Build established: Hacker-Assassin 16320 | -3/Research | Build established: Hacker-Skirmisher 16568 | -3/Research | Found Prototype Processor 16568 | -3/Research | Identified Exp. Target Analyzer 17703 | -3/Research | Lost 6 parts (1p2n3u) 17955 | -3/Research | Core integrity fell below 50% 17966 | -3/Research | Entered another Research area 17966 | -2/Research | Warlord forces began assault on 0b10 17966 | -2/Research | Evolved 2 slots: Propulsion x1, Utility x1 17991 | -2/Research | Distinguished unit "Lobotomizers" dispatched to help 17991 | -2/Research | Distinguished unit "Department No. 42" dispatched to help 17993 | -2/Research | Lost 10 parts (3n5u2w) 18032 | -2/Research | Identified exit to Access 18076 | -2/Research | Research machine network offline 18110 | -2/Research | Found Prototype Launcher 18110 | -2/Research | Identified Enh. Gamma Bomb Array 18322 | -2/Research | Lost 4 allies 18392 | -2/Research | Lost 12 allies 18465 | -2/Research | Borebot progress halted 18572 | -2/Research | Borebot progress halted 18602 | -2/Research | Borebot progress halted 19237 | -2/Research | Spotted Striker 19237 | -2/Research | Spotted Executioner 19282 | -2/Research | Spotted Striker 19284 | -2/Research | Spotted Striker 19337 | -2/Research | Build established: Wizard-Scout 19337 | -2/Research | Entered Access 19337 | -1/Access | Evolved 2 slots: Utility x2 19341 | -1/Access | Imp. System Shield fried by hacking feedback 19362 | -1/Access | Spotted B-99 Colossus 19437 | -1/Access | Lost 4 allies 19476 | -1/Access | Lost 3 parts (1n2u) 19587 | -1/Access | Search patrols dispatched 19680 | -1/Access | Identified exit to Surface 19832 | *** | Escaped! Last Messages --------------- 19705_ Imp. Hacking Suite destroyed. 19705_ Slug penetrates Wall. 19762_ W-44 Eye sends out distress signal. 19767_ Slug penetrates Wall. 19781_ ALERT: Suspicious intruders detected, dispatching Cutter reinforcements to area. 19788_ >> Machine Analyzer network decryption results: 19788_ Repair Station x2 19809_ Drone sends a signal. 19819_ >> Machine Analyzer network decryption results: 19819_ Garrison Access x3 19822_ W-44 Eye sends out distress signal. 19823_ Impulse Thruster destroyed. 19824_ S-43 Plague destroyed. 19828_ R-10 Processor collects Xenon Bombardment Thruster. 19829_ Connecting with Terminal... >>Open(Door) Sealed Barrier opened. 19830_ The Access Shell folds into the floor. [Achievement: 20k Club] Map ----- +----------------------------------------------------+ | ?????????????????????????????????????????????????? | | ?????????????????????????????????????????????????? | | ?????????????????????????????????????????????????? | | ?????????????????????????????????????????????????? | | ?????????????????????????????????????????????????? | | ?????????????????????????????????????????????????? | | ?????????????????????????????????????????????????? | | ?????????????????????????????????????????????????? | | ?????????????????????????????????????????????????? | | ??????????????????????????????????????? ?????????? | | ?????????????????????????????????????? #????????? | | ?????????????????????????????????????? #???????"" | | ?????????????????????????????????????? #???????"" | | ?????????????????????????????????????? #???????"" | | ?????????????????????????????????????? #???????"" | | ?????????????????????????????????????? +???????"" | | ?????????????????????????????????????? #????????? | | ?????????????????????????????????????? #????????? | | ?????????????????????????????????????? #????????? | | ?????????????????????????????###?????# #????????? | | ????????????????????########## ####### ########## | | ????????????????????" ## | | ??????????????BB????" ## | | ??????????????BB????" ## "" | | ????????????????????" ## """ | | ????????????????????" "@ ##= "R | | ????????????????????" "" ## """ | | ????????????????????" ## """ | | ??????????????BB????" s ## | | ??????????????BB????" """ """ ## | | ????????????????????" """T""" ######/### | | ????????????????????########## ####### #??## | | ?????????????????????????????###?????#ss#??#" | | ?????????????????????????????????????# #??## | | ?????????????????????????????????????#s #???# !! | | ?????????????????????????????###?????#s #???# !! | | ??????????????????????????####"#?????# #???# | | ??????????????????????????# ####### ##### | | ??????????????????????????#! | | ??????????????????????????# | | ??????????????????????????# ###### ######### | | ????????????""?????????#####/######## [ #???????? | | ???????????"""?????????# # % #???????? | | ????????????R"?????????# # * #???????? | | ???????????"""?????????# " # #???????? | | ????????????""?????????# "" # #???????? | | ???????????????????????# "" # #???????? | | ???????????????????????# "" + #???????? | | ???????????????????????# "" + # | | ???????????????????????# "" # " | +----------------------------------------------------+ Best States ------------- Heat Dissipation 65 Coolant Potential 100 Energy Generation 45 Energy Capacity 840 Matter Stores 300 Matter Capacity 300 Sight Range 22 Terrain Scan Density 10 ECM Strength 2 Jamming Range 16 Power Amplification 30 Additional Mass Support 9 Corruption Block 20 Armor Coverage 400 Resistance: EX 50 Propulsion Shielding 90 Utility Shielding 90 Point Defense Rating 160 Evasion (%) 72 Recoil Reduction 5 Salvage Targeting 6 Offensive Hacking 42 Defensive Hacking 44 Item Schematics ----------------- None Robot Schematics ------------------ None Fabricated ------------ Nothing Alien Tech Used ----------------- None Achievements -------------- 20k Club A Powerful Ally? Charge!!! Explorer Ooh, Shiny! Total Silence We Are Legion Challenges ------------ None Game ------ Seed CommRegenerativeBooster Manual? 0 Play Time 05:51:11 Cumulative 68.5 hours Start 2024.04.17 @ 19:03:12 End 2024.04.18 @ 22:25:38 Sessions 9 Manual Loads 0 Difficulty Rogue Special Mode None Game No. 94 Rogue 94 Adventurer 0 Explorer 0 Win Type 0 Total 2 Types 2/0/0/0/0/0/0/0/0 Lore% 30 Gallery% 38 Achievement% 35 Wizard Run 0 Options --------- Layout 0 ASCII 0 Keyboard 0 Movement Mouse Keybinds 0 Fullscreen 2 Font 18/X11Bold Map View 76x50 Zoom Use 0% Tactical HUD 1 Map Filters NONE Filters NONE Steam 1 RUN: deae6e3c-fe9d-473e-9953-5c53649368b7